fUST/lending_fUST_20250331
["ID","MTS","AMOUNT","RATE_DAILY","PERIOD"]
[356890370,1743391836604,-514.68768762,0.00019178,2]
[356890371,1743391836613,-526.7826073,0.00019178,2]
[356890372,1743391836623,-500.0,0.00019178,2]
[356890373,1743391836633,-502.89783633,0.00019178,2]
[356890374,1743391836643,-500.0,0.00019178,2]
[356890375,1743391836652,-500.0,0.00019178,2]
[356890376,1743391836667,-500.0,0.00019178,2]
[356890377,1743391836677,-500.0,0.00019178,2]
[356890378,1743391836687,-500.0,0.00019178,2]
[356890379,1743391836696,-500.0,0.00019178,2]
[356890380,1743391836706,-500.0,0.00019178,2]
[356890381,1743391836716,-500.0,0.00019178,2]
[356890382,1743391836726,-500.0,0.00019178,2]
[356890383,1743391836735,-512.87577767,0.00019178,2]
[356890384,1743391836745,-500.0,0.00019178,2]
[356890385,1743391836755,-500.0,0.00019178,2]
[356890386,1743391836764,-500.0,0.00019178,2]
[356890387,1743391836774,-589.78,0.00019178,2]
[356890388,1743391836783,-500.0,0.00019178,2]
[356890389,1743391836792,-500.0,0.00019178,2]
[356890390,1743391836802,-500.0,0.00019178,2]
[356890391,1743391836811,-505.59255479,0.00019178,2]
[356890392,1743391836821,-500.0,0.00019178,2]
[356890393,1743391836831,-500.0,0.00019178,2]
[356890394,1743391836841,-626.17719158,0.00019178,2]
[356890395,1743391836850,-508.78483539,0.00019178,2]
[356890396,1743391836859,-500.0,0.00019178,2]
[356890397,1743391836869,-500.0,0.00019178,2]
[356890398,1743391836879,-507.7130068,0.00019178,2]
[356890399,1743391836889,-514.87751826,0.00019178,2]
[356890400,1743391836898,-500.0,0.00019178,2]
[356890401,1743391836908,-500.0,0.00019178,2]
[356890402,1743391836918,-618.48,0.00019178,2]
[356890403,1743391836927,-500.0,0.00019178,2]
[356890404,1743391836940,-500.0,0.00019178,2]
[356890405,1743391836950,-500.0,0.00019178,2]
[356890406,1743391836960,-610.4,0.00019178,2]
[356890407,1743391836970,-500.0,0.00019178,2]
[356890408,1743391836980,-500.0,0.00019178,2]
[356890409,1743391837110,-500.0,0.00019178,2]
[356890410,1743391837121,-509.91628984,0.00019178,2]
[356890411,1743391837131,-500.0,0.00019178,2]
[356890412,1743391837141,-500.0,0.00019178,2]
[356890413,1743391837151,-517.5164487,0.00019178,2]
[356890414,1743391837160,-500.0,0.00019178,2]
[356890415,1743391837170,-500.0,0.00019178,2]
[356890416,1743391837179,-500.0,0.00019178,2]
[356890417,1743391837188,-500.0,0.00019178,2]
[356890418,1743391837197,-500.0,0.00019178,2]
[356890419,1743391837207,-500.0,0.00019178,2]
[356890420,1743391837216,-500.0,0.00019178,2]
[356890421,1743391837225,-500.0,0.00019178,2]
[356890422,1743391837235,-636.41,0.00019178,2]
[356890423,1743391837243,-500.0,0.00019178,2]
[356890424,1743391837255,-500.0,0.00019178,2]
[356890425,1743391837264,-500.0,0.00019178,2]
[356890426,1743391837274,-500.0,0.00019178,2]
[356890427,1743391837283,-659.78,0.00019178,2]
[356890428,1743391837292,-500.0,0.00019178,2]
[356890429,1743391837302,-500.0,0.00019178,2]
[356890430,1743391837311,-500.0,0.00019178,2]
[356890431,1743391837321,-500.0,0.00019178,2]
[356890432,1743391837330,-500.0,0.00019178,2]
[356890433,1743391837340,-500.0,0.00019178,2]
[356890434,1743391837349,-500.0,0.00019178,2]
[356890435,1743391837359,-500.0,0.00019178,2]
[356890436,1743391837368,-1005.8,0.00019178,2]
[356890437,1743391837378,-629.24,0.00019178,2]
[356890438,1743391837387,-1227.94,0.00019178,2]
[356890439,1743391837396,-500.0,0.00019178,2]
[356890440,1743391837406,-500.0,0.00019178,2]
[356890441,1743391837415,-578.41807437,0.00019178,2]
[356890442,1743391837425,-539.41897939,0.00019178,2]
[356890443,1743391837434,-500.0,0.00019178,2]
[356890445,1743391837444,-633.21,0.00019178,2]
[356890447,1743391837455,-500.0,0.00019178,2]
[356890449,1743391837467,-511.67457872,0.00019178,2]
[356890450,1743391837477,-500.0,0.00019178,2]
[356890451,1743391837487,-500.0,0.00019178,2]
[356890452,1743391837496,-518.15234886,0.00019178,2]
[356890453,1743391837507,-541.99508242,0.00019178,2]
[356890454,1743391837517,-353.14166525,0.00019178,2]
[356890455,1743391837527,-500.0,0.00019178,2]
[356890456,1743391837538,-2403.28,0.00019178,2]
[356890457,1743391837548,-500.0,0.00019178,2]
[356890458,1743391837558,-500.0,0.00019178,2]
[356890460,1743391837568,-507.34106265,0.00019178,2]
[356890461,1743391837577,-500.0,0.00019178,2]
[356890462,1743391837587,-500.0,0.00019178,2]
[356890463,1743391837596,-500.0,0.00019178,2]
[356890464,1743391837606,-500.0,0.00019178,2]
[356890466,1743391837616,-500.0,0.00019178,2]
[356890467,1743391837626,-500.0,0.00019178,2]
[356890469,1743391837635,-500.0,0.00019178,2]
[356890470,1743391837645,-508.43525984,0.00019178,2]
[356890472,1743391837655,-500.0,0.00019178,2]
[356890474,1743391837664,-500.0,0.00019178,2]
[356890476,1743391837674,-628.8,0.00019178,2]
[356890478,1743391837683,-500.0,0.00019178,2]
[356890480,1743391837693,-500.0,0.00019178,2]
[356890482,1743391837703,-500.0,0.00019178,2]
[356890484,1743391837713,-504.92293615,0.00019178,2]
[356890486,1743391837723,-500.0,0.00019178,2]
[356890488,1743391837734,-500.0,0.00019178,2]
[356890490,1743391837743,-500.0,0.00019178,2]
[356890492,1743391837753,-500.0,0.00019178,2]
[356890494,1743391837764,-500.0,0.00019178,2]
[356890495,1743391837774,-508.12116908,0.00019178,2]
[356890496,1743391837784,-500.0,0.00019178,2]
[356890497,1743391837793,-500.0,0.00019178,2]
[356890498,1743391837802,-547.61,0.00019178,2]
[356890499,1743391837811,-500.0,0.00019178,2]
[356890500,1743391837820,-500.0,0.00019178,2]
[356890501,1743391837829,-497.16,0.00019178,2]
[356890502,1743391837838,-517.66,0.00019178,2]
[356890503,1743391837847,-541.29207254,0.00019178,2]
[356890505,1743391837857,-500.0,0.00019178,2]
[356890507,1743391837866,-500.0,0.00019178,2]
[356890508,1743391837875,-500.0,0.00019178,2]
[356890510,1743391837884,-500.0,0.00019178,2]
[356890512,1743391837894,-500.0,0.00019178,2]
[356890514,1743391837903,-500.0,0.00019178,2]
[356890516,1743391837912,-577.88,0.00019178,2]
[356890518,1743391837922,-500.0,0.00019178,2]
[356890520,1743391837931,-500.0,0.00019178,2]
[356890523,1743391837940,-500.0,0.00019178,2]
[356890524,1743391837950,-500.0,0.00019178,2]
[356890527,1743391837962,-500.0,0.00019178,2]
[356890529,1743391837971,-500.0,0.00019178,2]
[356890531,1743391837980,-500.0,0.00019178,2]
[356890533,1743391837991,-500.0,0.00019178,2]
[356890535,1743391838000,-500.0,0.00019178,2]
[356890537,1743391838009,-500.0,0.00019178,2]
[356890539,1743391838018,-500.0,0.00019178,2]
[356890541,1743391838027,-626.4268659,0.00019178,2]
[356890543,1743391838036,-500.0,0.00019178,2]
[356890544,1743391838045,-500.0,0.00019178,2]
[356890546,1743391838054,-500.0,0.00019178,2]
[356890547,1743391838063,-500.0,0.00019178,2]
[356890549,1743391838072,-500.0,0.00019178,2]
[356890551,1743391838082,-187.751308,0.00019178,2]
[356890552,1743391838091,-187.751308,0.00019178,2]
[356890553,1743391838100,-187.751308,0.00019178,2]
[356890554,1743391838109,-187.751308,0.00019178,2]
[356890556,1743391838119,-187.751308,0.00019178,2]
[356890558,1743391838128,-500.0,0.00019178,2]
[356890560,1743391838137,-187.751308,0.00019178,2]
[356890564,1743391838160,-187.751308,0.00019178,2]
[356890566,1743391838170,-187.751308,0.00019178,2]
[356890568,1743391838180,-500.0,0.00019178,2]
[356890569,1743391838190,-187.751308,0.00019178,2]
[356890570,1743391838200,-500.0,0.00019178,2]
[356890571,1743391838211,-187.751308,0.00019178,2]
[356890572,1743391838220,-602.51689424,0.00019178,2]
[356890573,1743391838231,-500.0,0.00019178,2]
[356890574,1743391838240,-500.0,0.00019178,2]
[356890575,1743391838250,-500.0,0.00019178,2]
[356890576,1743391838260,-504.62119314,0.00019178,2]
[356890577,1743391838270,-500.0,0.00019178,2]
[356890578,1743391838280,-500.0,0.00019178,2]
[356890579,1743391838290,-500.0,0.00019178,2]
[356890580,1743391838300,-500.0,0.00019178,2]
[356890581,1743391838310,-507.93135917,0.00019178,2]
[356890582,1743391838319,-603.85420577,0.00019178,2]
[356890583,1743391838330,-530.33710264,0.00019178,2]
[356890584,1743391838339,-500.0,0.00019178,2]
[356890585,1743391838350,-516.87,0.00019178,2]
[356890586,1743391838359,-500.0,0.00019178,2]
[356890587,1743391838369,-500.0,0.00019178,2]
[356890588,1743391838379,-500.0,0.00019178,2]
[356890589,1743391838389,-500.0,0.00019178,2]
[356890590,1743391838400,-816.16,0.00019178,2]
[356890591,1743391838410,-500.0,0.00019178,2]
[356890592,1743391838419,-500.0,0.00019178,2]
[356890593,1743391838430,-500.0,0.00019178,2]
[356890594,1743391838439,-501.83793542,0.00019178,2]
[356890595,1743391838449,-500.0,0.00019178,2]
[356890596,1743391838463,-500.0,0.00019178,2]
[356890597,1743391838474,-500.0,0.00019178,2]
[356890598,1743391838483,-1853.93,0.00019178,2]
[356890599,1743391838494,-500.0,0.00019178,2]
[356890600,1743391838505,-2288.94,0.00019178,2]
[356890601,1743391838515,-500.0,0.00019178,2]
[356890602,1743391838525,-500.0,0.00019178,2]
[356890603,1743391838536,-635.61,0.00019178,2]
[356890604,1743391838545,-489.85390833,0.00019178,2]
[356890605,1743391838555,-513.13153121,0.00019178,2]
[356890606,1743391838565,-500.0,0.00019178,2]
[356890607,1743391838575,-2342.59,0.00019178,2]
[356890608,1743391838584,-500.0,0.00019178,2]
[356890609,1743391838594,-500.0,0.00019178,2]
[356890610,1743391838604,-500.0,0.00019178,2]
[356890611,1743391838614,-500.0,0.00019178,2]
[356890612,1743391838624,-500.0,0.00019178,2]
[356890613,1743391838635,-613.86,0.00019178,2]
[356890614,1743391838645,-2776.83,0.00019178,2]
[356890615,1743391838654,-3837.11,0.00019178,2]
[356890616,1743391838664,-500.0,0.00019178,2]
[356890617,1743391838676,-4002.72,0.00019178,2]
[356890618,1743391838686,-500.0,0.00019178,2]
[356890619,1743391838695,-1565.34,0.00019178,2]
[356890620,1743391838707,-500.0,0.00019178,2]
[356890621,1743391838717,-500.0,0.00019178,2]
[356890622,1743391838726,-500.0,0.00019178,2]
[356890623,1743391838737,-1023.48,0.00019178,2]
[356890624,1743391838746,-500.0,0.00019178,2]
[356890625,1743391838756,-648.05,0.00019178,2]
[356890626,1743391838766,-500.0,0.00019178,2]
[356890627,1743391838775,-500.0,0.00019178,2]
[356890628,1743391838785,-500.0,0.00019178,2]
[356890629,1743391838795,-500.0,0.00019178,2]
[356890630,1743391838805,-500.0,0.00019178,2]
[356890631,1743391838815,-500.0,0.00019178,2]
[356890632,1743391838824,-509.79970054,0.00019178,2]
[356890633,1743391838834,-500.0,0.00019178,2]
[356890634,1743391838843,-500.0,0.00019178,2]
[356890635,1743391838853,-508.49240544,0.00019178,2]
[356890636,1743391838863,-500.0,0.00019178,2]
[356890637,1743391838873,-839.99314475,0.00019178,2]
[356890638,1743391839231,-569.03685525,0.00019178,2]
[356890639,1743391839240,-500.0,0.00019178,2]
[356890640,1743391839250,-500.0,0.00019178,2]
[356890641,1743391839259,-500.0,0.00019178,2]
[356890642,1743391839268,-3638.03,0.00019178,2]
[356890643,1743391839278,-500.0,0.00019178,2]
[356890644,1743391839287,-151.0,0.00019178,2]
[356890645,1743391839297,-151.0,0.00019178,2]
[356890646,1743391839306,-500.0,0.00019178,2]
[356890647,1743391839315,-151.0,0.00019178,2]
[356890648,1743391839324,-151.0,0.00019178,2]
[356890649,1743391839334,-500.0,0.00019178,2]
[356890650,1743391839343,-500.0,0.00019178,2]
[356890651,1743391839352,-151.0,0.00019178,2]
[356890652,1743391839361,-151.0,0.00019178,2]
[356890653,1743391839371,-151.0,0.00019178,2]
[356890654,1743391839380,-500.0,0.00019178,2]
[356890655,1743391839389,-197.932192,0.00019178,2]
[356890656,1743391839398,-500.0,0.00019178,2]
[356890657,1743391839407,-773.66,0.00019178,2]
[356890658,1743391839416,-500.0,0.00019178,2]
[356890659,1743391839425,-3017.66,0.00019178,2]
[356890660,1743391839435,-500.0,0.00019178,2]
[356890661,1743391839444,-502.61654508,0.00019178,2]
[356890662,1743391839454,-3714.88,0.00019178,2]
[356890663,1743391839468,-500.0,0.00019178,2]
[356890664,1743391839478,-500.0,0.00019178,2]
[356890665,1743391839487,-504.75840994,0.00019178,2]
[356890666,1743391839499,-650.32,0.00019178,2]
[356890667,1743391839508,-500.0,0.00019178,2]
[356890668,1743391839517,-402.712281,0.00019178,2]
[356890669,1743391839527,-500.0,0.00019178,2]
[356890670,1743391839537,-1102.67,0.00019178,2]
[356890671,1743391839547,-500.0,0.00019178,2]
[356890672,1743391839556,-500.0,0.00019178,2]
[356890673,1743391839566,-500.0,0.00019178,2]
[356890674,1743391839575,-500.0,0.00019178,2]
[356890675,1743391839586,-6370.77,0.00019178,2]
[356890676,1743391839596,-510.77983525,0.00019178,2]
[356890677,1743391839605,-500.0,0.00019178,2]
[356890678,1743391839615,-500.0,0.00019178,2]
[356890679,1743391839624,-513.89859802,0.00019178,2]
[356890680,1743391839635,-500.0,0.00019178,2]
[356890682,1743391839644,-376.77541913,0.00019178,2]
[356890683,1743391839653,-500.0,0.00019178,2]
[356890684,1743391839663,-500.0,0.00019178,2]
[356890685,1743391839673,-500.0,0.00019178,2]
[356890686,1743391839684,-500.0,0.00019178,2]
[356890687,1743391839695,-612.08291248,0.00019178,2]
[356890688,1743391839707,-500.0,0.00019178,2]
[356890689,1743391839716,-568.72,0.00019178,2]
[356890690,1743391839726,-500.0,0.00019178,2]
[356890691,1743391839736,-500.0,0.00019178,2]
[356890692,1743391839745,-500.0,0.00019178,2]
[356890693,1743391839756,-649.33448243,0.00019178,2]
[356890694,1743391839766,-523.46,0.00019178,2]
[356890695,1743391839775,-500.0,0.00019178,2]
[356890696,1743391839785,-500.0,0.00019178,2]
[356890697,1743391839796,-500.0,0.00019178,2]
[356890699,1743391839805,-900.49,0.00019178,2]
[356890701,1743391839815,-500.0,0.00019178,2]
[356890702,1743391839824,-500.0,0.00019178,2]
[356890703,1743391839834,-500.0,0.00019178,2]
[356890704,1743391839843,-500.0,0.00019178,2]
[356890705,1743391839852,-500.0,0.00019178,2]
[356890706,1743391839862,-500.0,0.00019178,2]
[356890707,1743391839871,-500.0,0.00019178,2]
[356890708,1743391839879,-500.0,0.00019178,2]
[356890709,1743391839887,-2241.26,0.00019178,2]
[356890710,1743391839896,-500.0,0.00019178,2]
[356890711,1743391839906,-500.0,0.00019178,2]
[356890712,1743391839922,-500.0,0.00019178,2]
[356890713,1743391839932,-500.0,0.00019178,2]
[356890714,1743391839941,-1899.33,0.00019178,2]
[356890715,1743391839951,-7251.9,0.00019178,2]
[356890716,1743391839961,-500.0,0.00019178,2]
[356890717,1743391839970,-2226.1,0.00019178,2]
[356890718,1743391839979,-500.0,0.00019178,2]
[356890719,1743391839989,-500.0,0.00019178,2]
[356890720,1743391839998,-500.0,0.00019178,2]
[356890722,1743391840007,-500.0,0.00019178,2]
[356890723,1743391840017,-500.0,0.00019178,2]
[356890725,1743391840027,-500.0,0.00019178,2]
[356890727,1743391840035,-500.0,0.00019178,2]
[356890729,1743391840045,-500.0,0.00019178,2]
[356890730,1743391840055,-500.0,0.00019178,2]
[356890731,1743391840065,-2333.82,0.00019178,2]
[356890732,1743391840074,-633.23497598,0.00019178,2]
[356890733,1743391840083,-500.0,0.00019178,2]
[356890734,1743391840093,-500.0,0.00019178,2]
[356890735,1743391840102,-500.0,0.00019178,2]
[356890736,1743391840111,-500.0,0.00019178,2]
[356890737,1743391840119,-500.0,0.00019178,2]
[356890738,1743391840128,-514.68,0.00019178,2]
[356890739,1743391840137,-500.0,0.00019178,2]
[356890740,1743391840146,-500.0,0.00019178,2]
[356890741,1743391840155,-500.0,0.00019178,2]
[356890742,1743391840165,-500.0,0.00019178,2]
[356890743,1743391840174,-500.0,0.00019178,2]
[356890744,1743391840183,-1628.04,0.00019178,2]
[356890746,1743391840192,-500.0,0.00019178,2]
[356890747,1743391840202,-500.0,0.00019178,2]
[356890748,1743391840212,-500.0,0.00019178,2]
[356890749,1743391840221,-500.0,0.00019178,2]
[356890750,1743391840230,-500.0,0.00019178,2]
[356890751,1743391840240,-500.0,0.00019178,2]
[356890753,1743391840249,-919.55,0.00019178,2]
[356890755,1743391840258,-500.0,0.00019178,2]
[356890756,1743391840267,-500.0,0.00019178,2]
[356890757,1743391840276,-1486.5,0.00019178,2]
[356890758,1743391840286,-500.0,0.00019178,2]
[356890759,1743391840294,-500.0,0.00019178,2]
[356890761,1743391840304,-500.0,0.00019178,2]
[356890763,1743391840313,-500.0,0.00019178,2]
[356890764,1743391840322,-1463.42,0.00019178,2]
[356890765,1743391840332,-500.0,0.00019178,2]
[356890766,1743391840341,-500.0,0.00019178,2]
[356890767,1743391840350,-500.0,0.00019178,2]
[356890769,1743391840359,-582.3,0.00019178,2]
[356890770,1743391840368,-623.35,0.00019178,2]
[356890771,1743391840377,-500.0,0.00019178,2]
[356890772,1743391840386,-846.07,0.00019178,2]
[356890773,1743391840395,-500.0,0.00019178,2]
[356890774,1743391840404,-500.0,0.00019178,2]
[356890775,1743391840413,-500.0,0.00019178,2]
[356890776,1743391840422,-500.0,0.00019178,2]
[356890777,1743391840431,-500.0,0.00019178,2]
[356890778,1743391840440,-500.0,0.00019178,2]
[356890779,1743391840449,-500.0,0.00019178,2]
[356890780,1743391840460,-500.0,0.00019178,2]
[356890781,1743391840469,-500.0,0.00019178,2]
[356890782,1743391840478,-500.0,0.00019178,2]
[356890783,1743391840487,-5648.57,0.00019178,2]
[356890784,1743391840610,-500.0,0.00019178,2]
[356890785,1743391840622,-500.0,0.00019178,2]
[356890786,1743391840632,-500.0,0.00019178,2]
[356890787,1743391840643,-500.0,0.00019178,2]
[356890788,1743391840655,-772.76,0.00019178,2]
[356890789,1743391840666,-500.0,0.00019178,2]
[356890790,1743391840677,-500.0,0.00019178,2]
[356890791,1743391840689,-846.85,0.00019178,2]
[356890792,1743391840700,-500.0,0.00019178,2]
[356890793,1743391840711,-500.0,0.00019178,2]
[356890794,1743391840721,-637.36,0.00019178,2]
[356890795,1743391840732,-500.0,0.00019178,2]
[356890796,1743391840742,-500.0,0.00019178,2]
[356890797,1743391840752,-500.0,0.00019178,2]
[356890798,1743391840762,-500.0,0.00019178,2]
[356890799,1743391840772,-500.0,0.00019178,2]
[356890800,1743391840782,-508.88299751,0.00019178,2]
[356890801,1743391840791,-2591.01,0.00019178,2]
[356890802,1743391840801,-500.0,0.00019178,2]
[356890803,1743391840810,-500.63567577,0.00019178,2]
[356890804,1743391840820,-504.31176058,0.00019178,2]
[356890805,1743391840830,-500.0,0.00019178,2]
[356890806,1743391840839,-535.95873475,0.00019178,2]
[356890807,1743391840849,-500.0,0.00019178,2]
[356890808,1743391840860,-500.0,0.00019178,2]
[356890809,1743391840870,-500.0,0.00019178,2]
[356890810,1743391840879,-500.0,0.00019178,2]
[356890811,1743391840889,-500.0,0.00019178,2]
[356890812,1743391840899,-428.61755125,0.00019178,2]
[356890813,1743391840908,-500.0,0.00019178,2]
[356890814,1743391840919,-500.0,0.00019178,2]
[356890815,1743391840928,-500.0,0.00019178,2]
[356890816,1743391840938,-590.34969171,0.00019178,2]
[356890817,1743391840948,-1230.99,0.00019178,2]
[356890818,1743391840959,-500.0,0.00019178,2]
[356890819,1743391840968,-551.85103066,0.00019178,2]
[356890820,1743391840978,-500.0,0.00019178,2]
[356890821,1743391840988,-541.51915188,0.00019178,2]
[356890822,1743391840997,-500.0,0.00019178,2]
[356890823,1743391841007,-2450.38,0.00019178,2]
[356890824,1743391841016,-500.0,0.00019178,2]
[356890825,1743391841026,-11215.96,0.00019178,2]
[356890826,1743391841035,-500.0,0.00019178,2]
[356890827,1743391841045,-500.0,0.00019178,2]
[356890828,1743391841055,-500.0,0.00019178,2]
[356890829,1743391841064,-1180.82,0.00019178,2]
[356890830,1743391841074,-500.0,0.00019178,2]
[356890831,1743391841084,-504.95563629,0.00019178,2]
[356890832,1743391841094,-500.0,0.00019178,2]
[356890833,1743391841105,-150.0,0.00019311,2]
[356890834,1743391841114,-1599.0,0.00019329,2]
[356890835,1743391841124,-151.0,0.00019329,2]
[356890836,1743391841134,-6726.71302439,0.00019329,2]
[356890837,1743391841144,-151.0,0.0001944,2]
[356890838,1743391841154,-500.0,0.00019447,2]
[356890839,1743391841164,-500.0,0.00019447,2]
[356890840,1743391841173,-500.0,0.00019447,2]
[356890841,1743391841184,-554.40077279,0.00019447,2]
[356890842,1743391841194,-502.1652988,0.00019448,2]
[356890843,1743391841204,-500.0,0.00019452,2]
[356890844,1743391841214,-500.0,0.00019452,2]
[356890845,1743391841224,-500.0,0.00019452,2]
[356890846,1743391841234,-500.0,0.00019452,2]
[356890847,1743391841244,-500.0,0.00019452,2]
[356890848,1743391841253,-630.62,0.00019452,2]
[356890849,1743391841263,-500.0,0.00019452,2]
[356890850,1743391841273,-500.0,0.00019452,2]
[356890851,1743391841282,-500.0,0.00019452,2]
[356890852,1743391841292,-500.0,0.00019452,2]
[356890853,1743391841301,-500.0,0.00019452,2]
[356890854,1743391841310,-500.0,0.00019452,2]
[356890855,1743391841320,-558.00153522,0.00019452,2]
[356890856,1743391841330,-500.0,0.00019452,2]
[356890857,1743391841339,-500.0,0.00019452,2]
[356890858,1743391841349,-511.39995991,0.00019452,2]
[356890859,1743391841358,-500.0,0.00019452,2]
[356890860,1743391841368,-500.0,0.00019452,2]
[356890861,1743391841378,-500.0,0.00019452,2]
[356890862,1743391841387,-500.0,0.00019452,2]
[356890863,1743391841396,-500.0,0.00019452,2]
[356890864,1743391841406,-500.0,0.00019452,2]
[356890865,1743391841415,-500.0,0.00019452,2]
[356890866,1743391841426,-500.0,0.00019452,2]
[356890867,1743391841436,-570.45244016,0.00019452,2]
[356890868,1743391841445,-500.0,0.00019452,2]
[356890869,1743391841456,-500.0,0.00019452,2]
[356890870,1743391841469,-500.0,0.00019452,2]
[356890871,1743391841478,-500.0,0.00019452,2]
[356890872,1743391841487,-518.52874879,0.00019452,2]
[356890873,1743391841499,-500.0,0.00019452,2]
[356890874,1743391841508,-500.0,0.00019452,2]
[356890875,1743391841519,-500.0,0.00019452,2]
[356890876,1743391841528,-603.69726671,0.00019452,2]
[356890877,1743391841539,-500.0,0.00019452,2]
[356890878,1743391841549,-500.0,0.00019452,2]
[356890879,1743391841559,-506.65883047,0.00019452,2]
[356890880,1743391841568,-500.0,0.00019452,2]
[356890881,1743391841577,-500.0,0.00019452,2]
[356890882,1743391841587,-500.0,0.00019452,2]
[356890883,1743391841597,-500.0,0.00019452,2]
[356890884,1743391841607,-500.0,0.00019452,2]
[356890885,1743391841618,-200.0,0.00019452,2]
[356890886,1743391841629,-500.0,0.00019452,2]
[356890887,1743391841639,-500.0,0.00019452,2]
[356890888,1743391841649,-500.65,0.00019452,2]
[356890889,1743391841660,-500.0,0.00019452,2]
[356890890,1743391841670,-500.0,0.00019452,2]
[356890891,1743391841679,-500.0,0.00019452,2]
[356890892,1743391841688,-256.65759661,0.00019452,2]
[356890893,1743391841698,-500.0,0.00019452,2]
[356890894,1743391841709,-500.0,0.00019452,2]
[356890895,1743391841718,-505.90642205,0.00019452,2]
[356890896,1743391841727,-500.0,0.00019452,2]
[356890897,1743391841736,-500.0,0.00019452,2]
[356890898,1743391841745,-216.55690958,0.00019452,2]
[356890899,1743391841754,-500.0,0.00019452,2]
[356890900,1743391841763,-500.0,0.00019452,2]
[356890901,1743391841772,-510.20058722,0.00019452,2]
[356890902,1743391841782,-500.0,0.00019452,2]
[356890903,1743391841791,-500.0,0.00019452,2]
[356890904,1743391841800,-513.56551307,0.00019452,2]
[356890905,1743391841809,-500.0,0.00019452,2]
[356890906,1743391841818,-500.0,0.00019452,2]
[356890907,1743391841828,-500.0,0.00019452,2]
[356890908,1743391841837,-502.92114496,0.00019452,2]
[356890909,1743391841848,-500.0,0.00019452,2]
[356890910,1743391841858,-500.0,0.00019452,2]
[356890911,1743391841868,-500.0,0.00019452,2]
[356890912,1743391841878,-495.9504221,0.00019452,2]
[356890913,1743391841888,-511.0461596,0.00019452,2]
[356890914,1743391841898,-545.53258957,0.00019452,2]
[356890915,1743391841907,-542.96,0.00019452,2]
[356890916,1743391841917,-598.34,0.00019452,2]
[356890917,1743391841927,-500.0,0.00019452,2]
[356890918,1743391841936,-500.0,0.00019452,2]
[356890919,1743391841946,-500.0,0.00019452,2]
[356890920,1743391841956,-500.0,0.00019452,2]
[356890921,1743391841966,-514.37000966,0.00019452,2]
[356890922,1743391841975,-512.93651668,0.00019452,2]
[356890923,1743391841984,-544.83554148,0.00019452,2]
[356890924,1743391841994,-518.07,0.00019452,2]
[356890925,1743391842003,-500.0,0.00019452,2]
[356890926,1743391842013,-507.5254917,0.00019452,2]
[356890927,1743391842023,-500.0,0.00019452,2]
[356890928,1743391842032,-500.0,0.00019452,2]
[356890929,1743391842042,-500.0,0.00019452,2]
[356890930,1743391842052,-507.1862368,0.00019452,2]
[356890931,1743391842062,-500.0,0.00019452,2]